fUSD/lending_fUSD_20241104
["ID","MTS","AMOUNT","RATE_DAILY","PERIOD"]
[341297841,1730742728389,-157.69322364,0.0004384,120]
[341297842,1730742728398,-157.69322364,0.0004384,120]
[341297843,1730742728407,-157.69322364,0.0004384,120]
[341297844,1730742728418,-157.69322364,0.0004384,120]
[341297845,1730742728430,-157.69322364,0.0004384,120]
[341297846,1730742728440,-157.69322364,0.0004384,120]
[341297847,1730742728450,-157.69322364,0.0004384,120]
[341297848,1730742728460,-157.69322364,0.0004384,120]
[341297849,1730742728470,-157.69322364,0.0004384,120]
[341297850,1730742728480,-157.69,0.0004384,120]
[341297851,1730742728490,-153.05518766,0.0004384,120]
[341297852,1730742728500,-153.05518766,0.0004384,120]
[341297853,1730742728510,-153.05518766,0.0004384,120]
[341297854,1730742728519,-153.05518766,0.0004384,120]
[341297855,1730742728530,-153.05518766,0.0004384,120]
[341297856,1730742728539,-153.05518766,0.0004384,120]
[341297857,1730742728549,-153.05518766,0.0004384,120]
[341297858,1730742728561,-153.05518766,0.0004384,120]
[341297859,1730742728571,-153.05518766,0.0004384,120]
[341297860,1730742728581,-153.05518766,0.0004384,120]
[341297861,1730742728591,-153.05518766,0.0004384,120]
[341297862,1730742728600,-153.05518766,0.0004384,120]
[341297863,1730742728610,-153.05518766,0.0004384,120]
[341297864,1730742728619,-153.05518766,0.0004384,120]
[341297865,1730742728630,-153.05518766,0.0004384,120]
[341297866,1730742728640,-153.05518766,0.0004384,120]
[341297867,1730742728650,-153.05,0.0004384,120]
[341297868,1730742728659,-1000.0,0.0004384,19]
[341297869,1730742728668,-1335.570632,0.0004384,19]
[341297870,1730742728678,-150.0,0.00043848,120]
[341297871,1730742728688,-400.0,0.00043853,30]
[341297872,1730742728698,-400.0,0.00043853,30]
[341297873,1730742728708,-400.0,0.00043853,30]
[341297874,1730742728719,-158.274327,0.00043854,14]
[341297875,1730742728729,-150.0,0.00043854,14]
[341297876,1730742728738,-1233.65299828,0.00043859,2]
[341297877,1730742728747,-12039.01492112,0.00043859,2]
[341297878,1730742728757,-770.98962539,0.00043859,2]
[341297879,1730742728766,-315.36759368,0.00043859,2]
[341297880,1730742728775,-1000.0,0.0004386,20]
[341297881,1730742728786,-1000.0,0.0004386,20]
[341297882,1730742728795,-400.0,0.00043863,30]
[341297883,1730742728805,-400.0,0.00043863,30]
[341297884,1730742728815,-400.0,0.00043863,30]
[341297885,1730742728825,-400.0,0.00043863,30]
[341297886,1730742728834,-2879.1493912,0.00043864,2]
[341297887,1730742728845,-2566.7433622,0.00043864,2]
[341297888,1730742728855,-2254.3373331,0.00043864,2]
[341297889,1730742728865,-1941.931304,0.00043864,2]
[341297890,1730742728878,-1629.525275,0.00043864,2]
[341297891,1730742728887,-7522.4705949,0.00043864,2]
[341297892,1730742728897,-6706.2346696,0.00043864,2]
[341297893,1730742728907,-5889.9987444,0.00043864,2]
[341297894,1730742728916,-5073.7628192,0.00043864,2]
[341297895,1730742728926,-4257.5268939,0.00043864,2]
[341297896,1730742728935,-500.0,0.0004387,3]
[341297897,1730742728944,-500.0,0.0004387,3]
[341297898,1730742728957,-500.0,0.0004387,3]
[341297899,1730742728967,-956.50464643,0.0004387,3]
[341297900,1730742728977,-500.0,0.0004387,3]
[341297901,1730742728986,-700.0,0.0004387,3]
[341297902,1730742728996,-700.0,0.0004387,3]
[341297903,1730742729005,-700.0,0.0004387,3]
[341297904,1730742729014,-1000.0,0.0004388,20]
[341297905,1730742729024,-1000.0,0.0004388,20]
[341297906,1730742729034,-400.0,0.00043893,30]
[341297907,1730742729044,-400.0,0.00043893,30]
[341297908,1730742729054,-400.0,0.00043893,30]
[341297909,1730742729064,-425.66266224,0.00043893,30]
[341297910,1730742729074,-400.0,0.00043893,30]
[341297911,1730742729084,-400.0,0.00043893,30]
[341297912,1730742729094,-400.0,0.00043893,30]
[341297913,1730742729104,-151.0,0.00043894,7]
[341297914,1730742729114,-151.0,0.00043894,7]
[341297915,1730742729123,-151.0,0.00043894,7]
[341297916,1730742729134,-151.0,0.00043894,7]
[341297917,1730742729143,-151.0,0.00043894,7]
[341297918,1730742729154,-151.0,0.00043894,7]
[341297919,1730742729165,-151.0,0.00043894,14]
[341297920,1730742729175,-2422.81512327,0.00043897,30]
[341297921,1730742729184,-2422.81512327,0.00043897,30]
[341297922,1730742729195,-2422.81512327,0.00043897,30]
[341297923,1730742729204,-151.0,0.00043897,14]
[341297924,1730742729214,-151.0,0.00043897,14]
[341297925,1730742729223,-204.267232,0.00043897,14]
[341297926,1730742729233,-204.267232,0.00043897,14]
[341297927,1730742729244,-204.267232,0.00043897,14]
[341297928,1730742729254,-204.267232,0.00043897,14]
[341297929,1730742729263,-204.267232,0.00043897,14]
[341297930,1730742729274,-204.267232,0.00043897,14]
[341297931,1730742729285,-204.267232,0.00043897,14]
[341297932,1730742729294,-204.267232,0.00043897,14]
[341297933,1730742729303,-204.267232,0.00043897,14]
[341297934,1730742729313,-204.267232,0.00043897,14]
[341297935,1730742729324,-151.0,0.00043897,7]
[341297936,1730742729335,-151.0,0.00043897,7]
[341297937,1730742729345,-151.0,0.00043897,7]
[341297938,1730742729355,-151.0,0.00043897,7]
[341297939,1730742729364,-151.0,0.00043897,7]
[341297940,1730742729374,-1513.154908,0.00043897,14]
[341297941,1730742729384,-1513.154908,0.00043897,14]
[341297942,1730742729394,-1513.154917,0.00043897,14]
[341297943,1730742729403,-500.0,0.00043898,60]
[341297944,1730742729414,-500.0,0.00043898,60]
[341297945,1730742729425,-500.0,0.00043898,60]
[341297946,1730742729436,-500.0,0.00043898,60]
[341297947,1730742729446,-500.0,0.00043898,60]
[341297948,1730742729456,-500.0,0.00043898,60]
[341297949,1730742729466,-500.0,0.00043898,60]
[341297950,1730742729478,-500.0,0.00043898,60]
[341297951,1730742729487,-500.0,0.00043898,60]
[341297952,1730742729496,-1000.0,0.000439,30]
[341297953,1730742729505,-796.0,0.000439,31]
[341297954,1730742729515,-1000.0,0.000439,30]
[341297955,1730742729524,-1064.0,0.000439,16]
[341297956,1730742729533,-1000.0,0.000439,20]
[341297957,1730742729542,-1000.0,0.000439,20]
[341297958,1730742729551,-250.0,0.000439,7]
[341297959,1730742729560,-250.0,0.000439,7]
[341297960,1730742729570,-177.70042049,0.00043931,30]
[341297961,1730742729579,-700.0,0.00043943,16]
[341297962,1730742729588,-700.0,0.00043943,16]
[341297963,1730742729598,-700.0,0.00043943,16]
[341297964,1730742729607,-700.0,0.00043943,16]
[341297965,1730742729616,-706.60128279,0.00043943,16]
[341297966,1730742729626,-700.0,0.00043943,16]
[341297967,1730742729635,-700.0,0.00043943,16]
[341297968,1730742729645,-700.0,0.00043943,16]
[341297969,1730742729654,-700.0,0.00043943,16]
[341297970,1730742729664,-700.0,0.00043943,16]
[341297971,1730742729673,-272.561825,0.00043959,14]
[341297972,1730742729684,-151.0,0.00043959,14]
[341297973,1730742729694,-151.0,0.00043959,14]
[341297974,1730742729704,-151.0,0.00043959,14]
[341297975,1730742729713,-171.047592,0.00043959,14]
[341297976,1730742729723,-151.0,0.00043959,14]
[341297977,1730742729733,-151.0,0.00043959,14]
[341297978,1730742729742,-151.0,0.00043959,14]
[341297979,1730742729752,-250.451284,0.00043959,14]
[341297980,1730742729761,-1047.346902,0.00043959,14]
[341297981,1730742729770,-151.0,0.00043959,14]
[341297982,1730742729779,-1047.346902,0.00043959,14]
[341297983,1730742729788,-151.0,0.00043959,14]
[341297984,1730742729798,-1047.346902,0.00043959,14]
[341297985,1730742729807,-151.0,0.00043959,14]
[341297986,1730742729816,-1047.346902,0.00043959,14]
[341297987,1730742729825,-151.0,0.00043959,14]
[341297988,1730742729834,-1047.346902,0.00043959,14]
[341297989,1730742729843,-1047.346902,0.00043959,14]
[341297990,1730742729852,-1047.346902,0.00043959,14]
[341297991,1730742729861,-1047.346912,0.00043959,14]
[341297992,1730742729871,-461.74884,0.00043959,14]
[341297993,1730742729882,-461.74884,0.00043959,14]
[341297994,1730742729891,-461.74884,0.00043959,14]
[341297995,1730742729900,-461.74884,0.00043959,14]
[341297996,1730742729910,-461.74884,0.00043959,14]
[341297997,1730742729919,-461.74884,0.00043959,14]
[341297998,1730742729928,-461.74884,0.00043959,14]
[341297999,1730742729937,-461.748843,0.00043959,14]
[341298000,1730742729947,-28651.52137401,0.00043959,2]
[341298001,1730742729957,-371.9718614,0.00043959,2]
[341298002,1730742729967,-564.40749028,0.00043959,2]
[341298003,1730742729976,-1809.57848874,0.00043959,2]
[341298004,1730742729986,-3195.75478694,0.00043959,2]
[341298005,1730742729995,-172.8038027,0.00043959,2]
[341298006,1730742730004,-6982.74713028,0.00043959,2]
[341298007,1730742730013,-550.0,0.00043959,2]
[341298008,1730742730023,-1444.89677695,0.00043959,2]
[341298009,1730742730032,-171.15478596,0.00043959,2]
[341298010,1730742730042,-6000.0,0.00043959,2]
[341298011,1730742730051,-1018.00116591,0.00043959,2]
[341298012,1730742730060,-554.8681047,0.00043959,2]
[341298013,1730742730069,-150.0,0.00043959,2]
[341298014,1730742730078,-674747.11552567,0.00043959,2]
[341298015,1730742730088,-10175.83712189,0.00043959,7]
[341298016,1730742730097,-543.28911982,0.00043959,2]
[341298017,1730742730106,-1210.0,0.00043959,2]
[341298018,1730742730115,-342.85655723,0.00043959,2]
[341298019,1730742730125,-1496.97174922,0.00043959,2]
[341298020,1730742730134,-1052.1691243,0.00043959,2]
[341298021,1730742730144,-856.54565997,0.00043959,2]
[341298022,1730742730153,-187.96491104,0.00043959,2]
[341298023,1730742730162,-1291.31188396,0.00043959,2]
[341298024,1730742730171,-292.29574089,0.00043959,2]
[341298025,1730742730180,-1892.12874558,0.00043959,2]
[341298026,1730742730189,-181.26001343,0.00043959,2]
[341298027,1730742730198,-109230.54399485,0.00043959,2]
[341298028,1730742730207,-4751.99494342,0.00043959,2]
[341298029,1730742730216,-443.0386899,0.00043959,2]
[341298030,1730742730225,-1051.56413429,0.00043959,2]
[341298031,1730742730235,-570.90898414,0.00043959,2]
[341298032,1730742730244,-531.10649287,0.00043959,2]
[341298033,1730742730253,-899.07066619,0.00043959,2]
[341298034,1730742730262,-474.61753202,0.00043959,2]
[341298035,1730742730271,-1563.11656654,0.00043959,2]
[341298036,1730742730280,-2000.0,0.00043959,2]
[341298037,1730742730289,-321.04432132,0.00043959,2]
[341298038,1730742730298,-539.64989376,0.00043959,2]
[341298039,1730742730307,-359.3240174,0.00043959,2]
[341298040,1730742730316,-2172.40173425,0.00043959,2]
[341298041,1730742730325,-279.43655675,0.00043959,2]
[341298042,1730742730333,-217.02548866,0.00043959,2]
[341298043,1730742730342,-1039.0,0.00043959,2]
[341298044,1730742730351,-1409.15595586,0.00043959,2]
[341298045,1730742730360,-199.66145131,0.00043959,2]
[341298046,1730742730369,-1000.0,0.00043959,2]
[341298047,1730742730378,-1000.0,0.00043959,2]
[341298048,1730742730387,-1000.0,0.00043959,2]
[341298049,1730742730396,-13853.03240502,0.00043959,2]
[341298050,1730742730405,-1013.42556625,0.00043959,2]
[341298051,1730742730414,-1460.34660491,0.00043959,2]
[341298052,1730742730423,-20960.13431771,0.00043959,2]
[341298053,1730742730431,-933.0968485,0.00043959,20]
[341298054,1730742730440,-2640.41836558,0.00043959,2]
[341298055,1730742730450,-10000.0,0.00043959,15]
[341298056,1730742730459,-3674.42467922,0.00043959,2]
[341298057,1730742730468,-2959.24107178,0.00043959,2]
[341298058,1730742730602,-7263.9149698,0.00043959,2]
[341298059,1730742730612,-5103.81349619,0.00043959,2]
[341298060,1730742730622,-2690.41508333,0.00043959,2]
[341298061,1730742730632,-2416.61174244,0.00043959,2]
[341298062,1730742730642,-2636.538231,0.00043959,2]
[341298063,1730742730651,-3196.939214,0.00043959,2]
[341298064,1730742730661,-7601.01770722,0.00043959,2]
[341298065,1730742730670,-5879.17700628,0.00043959,2]
[341298066,1730742730680,-9097.53053394,0.00043959,2]
[341298067,1730742730691,-4866.79236486,0.00043959,2]
[341298068,1730742730701,-12640.99368148,0.00043959,2]
[341298069,1730742730710,-5499.96128108,0.00043959,2]
[341298070,1730742730719,-125488.91843401,0.00043959,2]
[341298071,1730742730728,-10832.31829828,0.00043959,2]
[341298072,1730742730737,-4932.42414673,0.00043959,2]
[341298073,1730742730747,-284.30055327,0.00043959,16]
[341298074,1730742730756,-993.36393319,0.00043959,2]
[341298075,1730742730766,-940.72888973,0.00043959,2]
[341298076,1730742730775,-10553.55772655,0.00043959,2]
[341298077,1730742730785,-479.39350815,0.00043959,15]
[341298078,1730742730794,-6648.02916769,0.00043959,4]
[341298079,1730742730803,-214.55065689,0.00043959,5]
[341298080,1730742730813,-1092.39173033,0.00043959,7]
[341298081,1730742730822,-212.4718908,0.00043959,7]
[341298082,1730742730831,-208.45415747,0.00043959,5]
[341298083,1730742730841,-1009.11090408,0.00043959,5]
[341298084,1730742730850,-233.55058373,0.00043959,7]
[341298085,1730742730859,-519.19761599,0.00043959,7]
[341298086,1730742730870,-300.0,0.00043959,15]
[341298087,1730742730883,-1000.0,0.00043959,2]
[341298088,1730742730893,-1000.0,0.00043959,3]
[341298089,1730742730902,-1000.0,0.00043959,4]
[341298090,1730742730911,-1000.0,0.00043959,5]
[341298091,1730742730922,-500.0,0.00043959,2]
[341298092,1730742730931,-500.0,0.00043959,3]
[341298093,1730742730941,-500.0,0.00043959,4]
[341298094,1730742730950,-500.0,0.00043959,5]
[341298095,1730742730961,-1500.0,0.00043959,2]
[341298096,1730742730970,-170557.21237531,0.00043959,2]
[341298097,1730742730980,-135347.07108373,0.00043959,2]
[341298098,1730742730989,-149763.42186018,0.00043959,2]
[341298099,1730742730998,-18270.93274342,0.00043959,2]
[341298100,1730742731006,-1473348.15902198,0.00043959,2]
[341298101,1730742731158,-530.55375115,0.00032876,2]
[341298102,1730742731168,-500.0,0.00032876,2]
[341298103,1730742731178,-500.0,0.00032876,2]
[341298104,1730742731187,-500.0,0.00032876,2]
[341298105,1730742731196,-500.0,0.0003315,2]
[341298106,1730742731207,-2174.31172275,0.00035164,15]
[341298107,1730742731216,-152.801,0.00039767,2]
[341298108,1730742731226,-32950.88921901,0.00043959,2]
[341298109,1730742731256,-500.0,0.00033424,2]
[341298110,1730742731265,-74167.61910827,0.00043959,2]
[341298114,1730742774674,157.47,0.00015342,2]
[341298120,1730743143375,198.0,5.7e-05,2]
[341298123,1730743203520,190.0,5.7e-05,2]
[341298124,1730743263054,158.0,6e-05,2]
[341298125,1730743323055,151.0,6e-05,2]
[341298127,1730743365658,157.55,0.00015342,2]
[341298128,1730743383732,151.0,6e-05,2]
[341298129,1730743443440,156.0,6e-05,2]
[341298153,1730743753607,-150.0,0.00018107,2]
[341298154,1730743753630,-250.0,0.00021,2]
[341298155,1730743753653,-300.0,0.00023,2]
[341298156,1730743753674,-224.79989565,0.00023301,2]
[341298157,1730743753697,-27414.78947906,0.00023815,2]
[341298158,1730743753719,-190.8,0.00023815,2]
[341298159,1730743753742,-348.05,0.00023815,2]
[341298160,1730743753765,-2016.55,0.00023815,2]
[341298161,1730743753788,-350.0,0.00025,2]
[341298162,1730743753810,-400.0,0.00027,2]
[341298163,1730743753832,-150.0,0.00029,4]
[341298164,1730743753854,-450.0,0.00029,2]
[341298165,1730743753877,-1735.02,0.00029113,2]
[341298166,1730743753899,-589.09,0.00029282,2]
[341298167,1730743753922,-1735.02,0.00029581,2]
[341298168,1730743753945,-184.42,0.00029768,2]
[341298169,1730743753972,-1013.01,0.00029777,2]
[341298170,1730743753994,-158.21,0.0002998,2]
[341298171,1730743754019,-159.33,0.00030006,2]
[341298172,1730743754041,-250.0,0.00030006,2]
[341298173,1730743754064,-250.0,0.00030041,2]
[341298174,1730743754087,-1735.02,0.00030049,2]
[341298175,1730743754111,-1727.45,0.00030297,2]
[341298176,1730743754134,-180.82,0.00030317,2]
[341298177,1730743754156,-213.81,0.00030485,2]
[341298178,1730743754178,-1509.62,0.00030485,2]
[341298179,1730743754201,-939.49,0.00030485,2]
[341298180,1730743754224,-1735.02,0.00030517,2]
[341298181,1730743754247,-23900.0,0.00030586,2]
[341298182,1730743754272,-356.12,0.00030586,2]
[341298183,1730743754294,-20469.56,0.00030611,2]
[341298184,1730743754317,-150.0,0.0003073,7]
[341298185,1730743754340,-200.0,0.00030735,2]
[341298186,1730743754363,-346.7,0.00030735,2]
[341298187,1730743754385,-2751.0,0.00030793,120]
[341298188,1730743754411,-150.0,0.00030928,2]
[341298189,1730743754433,-500.0,0.00030959,2]
[341298190,1730743754455,-1735.02,0.00030985,2]
[341298191,1730743754479,-8411.76,0.00030991,61]
[341298192,1730743754502,-500.0,0.00031,2]
[341298193,1730743754633,-250.0,0.00031048,2]
[341298194,1730743754657,-164.23,0.00031121,2]
[341298195,1730743754680,-5877.15,0.00031142,2]
[341298196,1730743754703,-151.96,0.00031161,30]
[341298197,1730743754725,-269.65,0.00031243,2]
[341298198,1730743754748,-1735.02,0.00031452,2]
[341298199,1730743754772,-589.09,0.00031546,2]
[341298200,1730743754793,-5429.39,0.00031877,2]
[341298201,1730743754818,-1735.02,0.0003192,2]
[341298202,1730743754841,-1735.02,0.00032388,2]
[341298203,1730743754863,-500.86543355,0.00032676,2]
[341298204,1730743754886,-510.6151,0.00032776,2]
[341298205,1730743754908,-1080.0732,0.00032776,2]
[341298206,1730743754931,-8914.1091,0.00032776,2]
[341298207,1730743754953,-310.5503,0.00032776,2]
[341298208,1730743754975,-7327.7435,0.00032776,2]
[341298209,1730743755000,-2804.87923654,0.00032776,15]
[341298210,1730743755027,-269.65,0.00032805,2]
[341298211,1730743755049,-500.0,0.00032873,5]
[341298212,1730743755073,-500.0,0.00032875,2]
[341298213,1730743755096,-244.4991025,0.00032875,2]
[341298214,1730743755118,-615.96443347,0.00032876,2]
[341298215,1730743755140,-500.0,0.00032876,2]
[341298216,1730743755163,-494.51274855,0.00032876,2]
[341298217,1730743755185,-500.0,0.00032876,2]
[341298218,1730743755208,-500.0,0.00032876,2]
[341298219,1730743755230,-502.36169856,0.00032876,2]
[341298220,1730743755253,-500.0,0.00032876,2]
[341298221,1730743755277,-500.0,0.00032876,2]
[341298222,1730743755300,-500.0,0.00032876,2]
[341298223,1730743755323,-304.16552564,0.00032876,2]
[341298224,1730743755345,-500.0,0.00032876,2]
[341298225,1730743755367,-500.0,0.00032876,2]
[341298226,1730743755392,-500.0,0.00032876,2]
[341298227,1730743755415,-500.0,0.00032876,2]
[341298228,1730743755437,-301.25883529,0.00032876,2]
[341298229,1730743755460,-500.0,0.00032876,2]
[341298230,1730743755484,-505.65291943,0.00032876,2]
[341298231,1730743755507,-503.27239396,0.00032876,2]
[341298232,1730743755529,-500.0,0.00032876,2]
[341298233,1730743755552,-500.0,0.00032876,2]
[341298234,1730743755574,-500.0,0.00032876,2]
[341298235,1730743755596,-500.0,0.00032876,2]
[341298236,1730743755621,-500.0,0.00032876,2]
[341298237,1730743755645,-500.0,0.00032876,2]
[341298238,1730743755670,-500.0,0.00032876,2]
[341298239,1730743755694,-500.0,0.00032876,2]
[341298240,1730743755718,-500.0,0.00032876,2]
[341298241,1730743755742,-500.0,0.00032876,2]
[341298242,1730743755766,-500.0,0.00032876,2]
[341298243,1730743755789,-500.0,0.00032876,2]
[341298244,1730743755812,-500.0,0.00032876,2]
[341298245,1730743755835,-500.0,0.00032876,2]
[341298246,1730743755858,-500.0,0.00032876,2]
[341298247,1730743755880,-501.64290393,0.00032876,2]
[341298248,1730743755902,-500.0,0.00032876,2]
[341298249,1730743755924,-500.0,0.00032876,2]
[341298250,1730743755946,-500.0,0.00032876,2]
[341298251,1730743755968,-500.0,0.00032876,2]
[341298252,1730743755990,-518.44,0.00032876,2]
[341298253,1730743756015,-500.0,0.00032876,2]
[341298254,1730743756037,-500.0,0.00032876,2]
[341298255,1730743756059,-500.0,0.00032876,2]
[341298256,1730743756081,-203.65852913,0.00032876,2]
[341298257,1730743756104,-156.36525271,0.00032876,2]
[341298258,1730743756126,-500.0,0.00032876,2]
[341298259,1730743756149,-500.0,0.00032876,2]
[341298260,1730743756173,-500.0,0.00032876,2]
[341298261,1730743756195,-613.51,0.00032876,2]
[341298262,1730743756218,-505.30031655,0.00032876,2]
[341298263,1730743756240,-500.0,0.00032876,2]
[341298264,1730743756264,-500.0,0.00032876,2]
[341298265,1730743756286,-500.0,0.00032876,2]
[341298266,1730743756310,-500.0,0.00032876,2]
[341298267,1730743756332,-500.0,0.00032876,2]
[341298268,1730743756354,-500.0,0.00032876,2]
[341298269,1730743756376,-500.0,0.00032876,2]
[341298270,1730743756401,-158.96724764,0.00032876,2]
[341298271,1730743756424,-500.0,0.00032876,2]
[341298272,1730743756448,-404.39871674,0.00032876,2]
[341298273,1730743756473,-500.0,0.00032876,2]
[341298274,1730743756495,-500.0,0.00032876,2]
[341298275,1730743756517,-500.0,0.00032876,2]
[341298276,1730743756539,-500.0,0.00032876,2]
[341298277,1730743756561,-500.0,0.00032876,2]
[341298278,1730743756585,-500.0,0.00032876,2]
[341298279,1730743756607,-500.0,0.00032876,2]
[341298280,1730743756629,-242.499985,0.00032876,2]
[341298281,1730743756653,-500.0,0.00032876,2]
[341298282,1730743756675,-500.0,0.00032876,2]
[341298283,1730743756697,-500.0,0.00032876,2]
[341298284,1730743756720,-500.0,0.00032876,2]
[341298285,1730743756741,-500.0,0.00032876,2]
[341298286,1730743756766,-500.0,0.00032876,2]
[341298287,1730743756788,-500.0,0.00032876,2]
[341298288,1730743756810,-500.0,0.00032876,2]
[341298289,1730743756832,-500.0,0.00032876,2]
[341298290,1730743756854,-500.0,0.00032876,2]
[341298291,1730743756877,-500.0,0.00032876,2]
[341298292,1730743756898,-500.0,0.00032876,2]
[341298293,1730743756921,-500.0,0.00032876,2]
[341298294,1730743756944,-500.0,0.00032876,2]
[341298295,1730743756966,-500.0,0.00032876,2]
[341298296,1730743757188,-500.0,0.00032876,2]
[341298297,1730743757213,-207.49053044,0.00032876,2]
[341298298,1730743757236,-502.75,0.00032876,2]
[341298299,1730743757261,-500.0,0.00032876,2]
[341298300,1730743757283,-500.0,0.00032876,2]
[341298301,1730743757305,-500.0,0.00032876,2]
[341298302,1730743757330,-500.0,0.00032876,2]
[341298303,1730743757354,-500.0,0.00032876,2]
[341298304,1730743757380,-500.0,0.00032876,2]
[341298305,1730743757407,-538.66194842,0.00032876,2]
[341298306,1730743757431,-500.0,0.00032876,2]
[341298307,1730743757454,-500.0,0.00032876,2]
[341298308,1730743757476,-500.0,0.00032876,2]
[341298309,1730743757500,-500.0,0.00032876,2]
[341298310,1730743757524,-500.0,0.00032876,2]
[341298311,1730743757548,-500.0,0.00032876,2]
[341298312,1730743757571,-502.40521133,0.00032876,2]
[341298313,1730743757593,-500.0,0.00032876,2]
[341298314,1730743757615,-500.0,0.00032876,2]
[341298315,1730743757637,-500.0,0.00032876,2]
[341298316,1730743757660,-514.96535718,0.00032876,2]
[341298317,1730743757683,-500.0,0.00032876,2]
[341298318,1730743757705,-602.72,0.00032876,2]
[341298319,1730743757731,-500.0,0.00032876,2]
[341298320,1730743757760,-500.0,0.00032876,2]
[341298321,1730743757785,-500.0,0.00032876,2]
[341298322,1730743757808,-548.14,0.00032876,2]
[341298323,1730743757830,-500.0,0.00032876,2]
[341298324,1730743757852,-500.0,0.00032876,2]
[341298325,1730743757879,-500.0,0.00032876,2]
[341298326,1730743757904,-500.0,0.00032876,2]
[341298327,1730743757926,-500.0,0.00032876,2]
[341298328,1730743757954,-500.0,0.00032876,2]
[341298329,1730743757977,-500.0,0.00032876,2]
[341298330,1730743758000,-500.0,0.00032876,2]
[341298331,1730743758025,-500.0,0.00032876,2]
[341298332,1730743758048,-500.0,0.00032876,2]
[341298333,1730743758072,-524.51,0.00032876,2]
[341298334,1730743758097,-500.0,0.00032876,2]
[341298335,1730743758122,-636.99315271,0.00032876,2]
[341298336,1730743758146,-500.0,0.00032876,2]
[341298337,1730743758170,-500.0,0.00032876,2]
[341298338,1730743758194,-500.0,0.00032876,2]
[341298339,1730743758216,-500.0,0.00032876,2]
[341298340,1730743758240,-500.0,0.00032876,2]
[341298341,1730743758268,-500.0,0.00032876,2]
[341298342,1730743758292,-500.0,0.00032876,2]
[341298343,1730743758316,-500.0,0.00032876,2]
[341298344,1730743758339,-500.0,0.00032876,2]
[341298345,1730743758362,-500.0,0.00032876,2]
[341298346,1730743758388,-500.0,0.00032876,2]
[341298347,1730743758414,-505.18076534,0.00032876,2]
[341298348,1730743758438,-500.0,0.00032876,2]
[341298349,1730743758462,-500.0,0.00032876,2]
[341298350,1730743758487,-500.0,0.00032876,2]
[341298351,1730743758517,-354.8057808,0.00032876,2]
[341298352,1730743758546,-167.09819766,0.00032876,2]
[341298353,1730743758570,-642.95,0.00032876,2]
[341298354,1730743758596,-500.0,0.00032876,2]
[341298355,1730743758622,-572.72,0.00032876,2]
[341298356,1730743758647,-156.38479483,0.00032876,2]
[341298357,1730743758671,-500.0,0.00032876,2]
[341298358,1730743758694,-500.0,0.00032876,2]
[341298359,1730743758719,-500.0,0.00032876,2]
[341298360,1730743758742,-500.0,0.00032876,2]
[341298361,1730743758774,-500.0,0.00032876,2]
[341298362,1730743758797,-500.0,0.00032876,2]
[341298363,1730743758820,-500.0,0.00032876,2]
[341298364,1730743758843,-500.0,0.00032876,2]
[341298365,1730743758867,-612.29,0.00032876,2]
[341298366,1730743758892,-502.45696942,0.00032876,2]
[341298367,1730743758920,-540.61,0.00032876,2]
[341298368,1730743758943,-513.93,0.00032876,2]
[341298369,1730743758968,-500.0,0.00032876,2]
[341298370,1730743758994,-588.86,0.00032876,2]
[341298371,1730743759020,-500.0,0.00032876,2]
[341298372,1730743759046,-503.37022424,0.00032876,2]
[341298373,1730743759071,-500.0,0.00032876,2]
[341298374,1730743759095,-500.0,0.00032876,2]